[Event "Fast Chess"]
[Site "ChessKid.com"]
[Date "2020.03.27"]
[Round "3"]
[White "Li, Tobias"]
[Black "Horvath, Alexander"]
[Result "1-0"]
[ECO "D07"]
[WhiteElo "1320"]
[BlackElo "1318"]
[PlyCount "79"]
[EventDate "2020.??.??"]
[TimeControl "900"]
[WhiteClock "0:10:33"]
[BlackClock "0:09:02"]

1. d4 {[%emt 0:00:01]} d5 {[%emt 0:00:01]} 2. c4 {[%emt 0:00:03]} dxc4 {
[%emt 0:00:03]} 3. e3 {[%emt 0:00:01]} Nf6 {[%emt 0:00:12]} 4. Bxc4 {[%emt 0:
00:03]} Nc6 {[%emt 0:00:06]} 5. Nf3 {[%emt 0:00:07]} Bg4 {[%emt 0:00:03]} 6.
O-O {[%emt 0:00:05]} e6 {[%emt 0:00:04]} 7. Nc3 {[%emt 0:00:03]} Na5 {[%emt 0:
00:06]} 8. Bd3 {[%emt 0:00:10]} c6 {[%emt 0:00:02]} 9. Bd2 {[%emt 0:00:05]} Bd6
{[%emt 0:00:02]} 10. Na4 {[%emt 0:00:14]} Bb8 {[%emt 0:00:03]} 11. Be2 {
[%emt 0:00:13]} Qc7 {[%emt 0:00:04]} 12. g3 {[%emt 0:00:20]} Ne4 {[%emt 0:00:
10]} 13. Qe1 {[%emt 0:00:08]} Bxf3 {[%emt 0:00:06]} 14. Bxf3 {[%emt 0:00:06]}
Ng5 {[%emt 0:00:08]} 15. Bxa5 {[%emt 0:00:09]} Nh3+ {[%emt 0:00:10]} 16. Kg2 {
[%emt 0:00:16]} Nf4+ {[%emt 0:00:09]} 17. gxf4 {[%emt 0:00:18]} b6 {[%emt 0:00:
03]} 18. Bd2 {[%emt 0:00:08]} g5 {[%emt 0:00:26]} 19. Qe2 {[%emt 0:00:37]} Rg8
{[%emt 0:00:03]} 20. Rfd1 {[%emt 0:00:08]} gxf4+ {[%emt 0:00:02]} 21. Kf1 {
[%emt 0:00:02]} fxe3 {[%emt 0:00:03]} 22. Bxe3 {[%emt 0:00:02]} Qxh2 {[%emt 0:
00:15]} 23. Ke1 {[%emt 0:00:10]} e5 {[%emt 0:00:21]} 24. Bxc6+ {[%emt 0:00:13]}
Kd8 {[%emt 0:00:05]} 25. Bxa8 {[%emt 0:00:03]} exd4 {[%emt 0:00:02]} 26. Rxd4+
{[%emt 0:00:08]} Kc8 {[%emt 0:00:05]} 27. Kd2 {[%emt 0:00:04]} Be5 {[%emt 0:00:
19]} 28. Rc4+ {[%emt 0:00:15]} Kb8 {[%emt 0:00:02]} 29. Bd5 {[%emt 0:00:10]}
Rd8 {[%emt 0:00:10]} 30. Qd3 {[%emt 0:00:29]} b5 {[%emt 0:00:06]} 31. Rb4 {
[%emt 0:00:11]} Bf4 {[%emt 0:00:15]} 32. Bxf4+ {[%emt 0:00:09]} Qxf4+ {[%emt 0:
00:07]} 33. Rxf4 {[%emt 0:00:02]} f5 {[%emt 0:00:05]} 34. Rxf5 {[%emt 0:00:04]}
bxa4 {[%emt 0:00:01]} 35. Rf7 {[%emt 0:00:12]} h5 {[%emt 0:00:05]} 36. Ke2 {
[%emt 0:00:15]} Re8+ {[%emt 0:00:05]} 37. Kf1 {[%emt 0:00:04]} Rh8 {[%emt 0:00:
12]} 38. Qb5+ {[%emt 0:00:06]} Kc8 {[%emt 0:00:05]} 39. Qb7+ {[%emt 0:00:03]}
Kd8 {[%emt 0:00:03]} 40. Qd7# {[%emt 0:00:02] OnlyHungryKiwi won by checkmate}
1-0

[Event "Fast Chess"]
[Site "ChessKid.com"]
[Date "2020.03.27"]
[Round "3"]
[White "Sasse, Gabriel"]
[Black "Gross, Lukas"]
[Result "0-1"]
[ECO "B06"]
[WhiteElo "1151"]
[BlackElo "1087"]
[PlyCount "118"]
[EventDate "2020.??.??"]
[TimeControl "900"]
[WhiteClock "0:09:13"]
[BlackClock "0:10:12"]

1. e4 {[%emt 0:00:00]} g6 {[%emt 0:00:02]} 2. Qf3 {[%emt 0:00:04]} Bg7 {
[%emt 0:00:01]} 3. Bc4 {[%emt 0:00:03]} Nh6 {[%emt 0:00:01]} 4. d3 {[%emt 0:00:
03]} O-O {[%emt 0:00:02]} 5. Bxh6 {[%emt 0:00:03]} Bxh6 {[%emt 0:00:02]} 6. Qh3
{[%emt 0:00:04]} d6 {[%emt 0:00:11]} 7. Nf3 {[%emt 0:00:02]} Bxh3 {[%emt 0:00:
02]} 8. gxh3 {[%emt 0:00:03]} c6 {[%emt 0:00:04]} 9. O-O {[%emt 0:00:03]} e6 {
[%emt 0:00:02]} 10. e5 {[%emt 0:00:05]} d5 {[%emt 0:00:02]} 11. Bb3 {[%emt 0:
00:06]} Bg7 {[%emt 0:00:04]} 12. Nc3 {[%emt 0:00:04]} d4 {[%emt 0:00:03]} 13.
Ne2 {[%emt 0:00:12]} c5 {[%emt 0:00:08]} 14. c4 {[%emt 0:00:07]} a6 {[%emt 0:
00:05]} 15. Nf4 {[%emt 0:00:08]} g5 {[%emt 0:00:04]} 16. Nh5 {[%emt 0:00:03]}
b5 {[%emt 0:00:14]} 17. Nxg7 {[%emt 0:00:04]} Kxg7 {[%emt 0:00:04]} 18. Kh1 {
[%emt 0:00:02]} Kh8 {[%emt 0:00:03]} 19. Rg1 {[%emt 0:00:02]} Rg8 {[%emt 0:00:
08]} 20. cxb5 {[%emt 0:00:14]} axb5 {[%emt 0:00:08]} 21. Rac1 {[%emt 0:00:02]}
c4 {[%emt 0:00:09]} 22. dxc4 {[%emt 0:00:02]} bxc4 {[%emt 0:00:02]} 23. Bxc4 {
[%emt 0:00:02]} Nc6 {[%emt 0:00:10]} 24. Rcd1 {[%emt 0:00:02]} Ra4 {[%emt 0:00:
06]} 25. Bb5 {[%emt 0:00:03]} Ra5 {[%emt 0:00:08]} 26. Bxc6 {[%emt 0:00:03]} g4
{[%emt 0:00:08]} 27. hxg4 {[%emt 0:00:03]} Ra6 {[%emt 0:00:06]} 28. Nxd4 {
[%emt 0:00:04]} Qc7 {[%emt 0:00:09]} 29. g5 {[%emt 0:00:19]} Rxa2 {[%emt 0:00:
07]} 30. Bb5 {[%emt 0:00:17]} Rxb2 {[%emt 0:00:03]} 31. Bd3 {[%emt 0:00:21]}
Rd8 {[%emt 0:00:21]} 32. Nf3 {[%emt 0:00:18]} Rb3 {[%emt 0:00:05]} 33. Ne1 {
[%emt 0:00:04]} Rd7 {[%emt 0:00:10]} 34. Bc2 {[%emt 0:00:09]} Rc3 {[%emt 0:00:
11]} 35. Ba4 {[%emt 0:00:12]} Rxd1 {[%emt 0:00:05]} 36. Bxd1 {[%emt 0:00:02]}
Qc6+ {[%emt 0:00:13]} 37. Ng2 {[%emt 0:00:05]} Rc1 {[%emt 0:00:05]} 38. Bh5 {
[%emt 0:00:17]} Rxg1+ {[%emt 0:00:04]} 39. Kxg1 {[%emt 0:00:02]} Qc1+ {[%emt 0:
00:03]} 40. Ne1 {[%emt 0:00:03]} Qxe1+ {[%emt 0:00:02]} 41. Kg2 {[%emt 0:00:01]
} Qe4+ {[%emt 0:00:03]} 42. Kg1 {[%emt 0:00:03]} Qxe5 {[%emt 0:00:05]} 43. Bxf7
{[%emt 0:00:02]} Qxg5+ {[%emt 0:00:05]} 44. Kf1 {[%emt 0:00:01]} Kg7 {[%emt 0:
00:16]} 45. Bxe6 {[%emt 0:00:02]} Qc1+ {[%emt 0:00:08]} 46. Ke2 {[%emt 0:00:01]
} Qh1 {[%emt 0:00:10]} 47. h3 {[%emt 0:00:03]} Qe4+ {[%emt 0:00:07]} 48. Kf1 {
[%emt 0:00:07]} Qxe6 {[%emt 0:00:01]} 49. Kg2 {[%emt 0:00:01]} h5 {[%emt 0:00:
11]} 50. Kg3 {[%emt 0:00:02]} Qg6+ {[%emt 0:00:04]} 51. Kh2 {[%emt 0:00:03]}
Qd6+ {[%emt 0:00:07]} 52. Kg2 {[%emt 0:00:02]} h4 {[%emt 0:00:06]} 53. f3 {
[%emt 0:00:04]} Qg6+ {[%emt 0:00:06]} 54. Kh2 {[%emt 0:00:03]} Qc2+ {[%emt 0:
00:08]} 55. Kg1 {[%emt 0:00:05]} Kg6 {[%emt 0:00:06]} 56. Kh1 {[%emt 0:00:01]}
Kg5 {[%emt 0:00:03]} 57. Kg1 {[%emt 0:00:01]} Kf4 {[%emt 0:00:02]} 58. Kf1 {
[%emt 0:00:01]} Kxf3 {[%emt 0:00:02]} 59. Ke1 {[%emt 0:00:04]} Qe2# {[%emt 0:
00:01] RosyPopularArm won by checkmate} 0-1

[Event "Fast Chess"]
[Site "ChessKid.com"]
[Date "2020.03.28"]
[Round "1"]
[White "Sasse, Gabriel"]
[Black "Li, Tobias"]
[Result "1-0"]
[ECO "C50"]
[WhiteElo "1172"]
[BlackElo "1214"]
[PlyCount "37"]
[EventDate "2020.??.??"]
[TimeControl "900"]
[WhiteClock "0:07:05"]
[BlackClock "0:13:40"]

1. e4 {[%emt 0:00:00]} e5 {[%emt 0:06:43]} 2. Nf3 {[%emt 0:00:01]} Nc6 {
[%emt 0:00:05]} 3. Nc3 {[%emt 0:00:01]} Nf6 {[%emt 0:00:02]} 4. Bc4 {[%emt 0:
00:01]} Bc5 {[%emt 0:00:04]} 5. h3 {[%emt 0:00:01]} O-O {[%emt 0:00:04]} 6. O-O
{[%emt 0:00:02]} h6 {[%emt 0:00:01]} 7. d3 {[%emt 0:00:10]} d6 {[%emt 0:00:02]}
8. a3 {[%emt 0:00:13]} Re8 {[%emt 0:00:02]} 9. b4 {[%emt 0:00:02]} Bb6 {
[%emt 0:00:03]} 10. Nd5 {[%emt 0:00:21]} Nxd5 {[%emt 0:00:13]} 11. exd5 {
[%emt 0:00:03]} Ne7 {[%emt 0:00:01]} 12. d4 {[%emt 0:00:05]} exd4 {[%emt 0:00:
05]} 13. Nxd4 {[%emt 0:00:02]} a5 {[%emt 0:00:02]} 14. bxa5 {[%emt 0:00:03]}
Bxa5 {[%emt 0:00:05]} 15. Qf3 {[%emt 0:00:04]} Bc3 {[%emt 0:00:05]} 16. Qxc3 {
[%emt 0:00:04]} Bd7 {[%emt 0:00:07]} 17. Bb2 {[%emt 0:00:02]} c6 {[%emt 0:00:
07]} 18. Nxc6 {[%emt 0:00:03]} bxc6 {[%emt 0:00:06]} 19. Qxg7# {[%emt 0:00:02]
LimeFarActor won by checkmate} 1-0

[Event "Fast Chess"]
[Site "ChessKid.com"]
[Date "2020.03.28"]
[Round "1"]
[White "Georgiev, Maximilian"]
[Black "Dai, Lana"]
[Result "0-1"]
[ECO "C42"]
[WhiteElo "1193"]
[BlackElo "1082"]
[PlyCount "32"]
[EventDate "2020.??.??"]
[TimeControl "900"]
[WhiteClock "0:12:56"]
[BlackClock "0:13:48"]

1. e4 {[%emt 0:00:01]} e5 {[%emt 0:00:01]} 2. Nf3 {[%emt 0:00:01]} Nf6 {
[%emt 0:00:08]} 3. Nxe5 {[%emt 0:00:02]} Qe7 {[%emt 0:00:02]} 4. Nf3 {[%emt 0:
00:08]} Nxe4 {[%emt 0:00:03]} 5. Be2 {[%emt 0:00:07]} Qd8 {[%emt 0:00:11]} 6.
O-O {[%emt 0:00:04]} Bc5 {[%emt 0:00:06]} 7. Bc4 {[%emt 0:00:14]} d6 {[%emt 0:
00:04]} 8. d3 {[%emt 0:00:05]} Nf6 {[%emt 0:00:10]} 9. Nc3 {[%emt 0:00:02]} Bg4
{[%emt 0:00:02]} 10. h3 {[%emt 0:00:02]} Bh5 {[%emt 0:00:10]} 11. Bg5 {[%emt 0:
00:10]} Nc6 {[%emt 0:00:09]} 12. Bb5 {[%emt 0:00:03]} a6 {[%emt 0:00:03]} 13.
Ba4 {[%emt 0:00:02]} b5 {[%emt 0:00:19]} 14. Bb3 {[%emt 0:00:03]} Nd4 {[%emt 0:
00:16]} 15. Nxd4 {[%emt 0:00:04]} Bxd1 {[%emt 0:00:11]} 16. Raxd1 {[%emt 0:00:
05]} Bxd4 {[%emt 0:00:09] TopBrownCave won by resignation} 0-1

[Event "Fast Chess"]
[Site "ChessKid.com"]
[Date "2020.03.28"]
[Round "2"]
[White "Li, Patrick"]
[Black "Sasse, Gabriel"]
[Result "1-0"]
[ECO "D00"]
[WhiteElo "932"]
[BlackElo "1159"]
[PlyCount "135"]
[EventDate "2020.??.??"]
[TimeControl "900"]
[WhiteClock "0:09:42"]
[BlackClock "0:03:34"]

1. d4 {[%emt 0:00:30]} Nc6 {[%emt 0:00:05]} 2. Nf3 {[%emt 0:00:04]} d5 {
[%emt 0:00:05]} 3. Nc3 {[%emt 0:00:05]} Nf6 {[%emt 0:00:02]} 4. e3 {[%emt 0:00:
08]} e6 {[%emt 0:00:02]} 5. Bb5 {[%emt 0:00:10]} Bb4 {[%emt 0:00:03]} 6. O-O {
[%emt 0:00:09]} h6 {[%emt 0:00:04]} 7. h3 {[%emt 0:00:08]} O-O {[%emt 0:00:02]}
8. Bxc6 {[%emt 0:00:13]} bxc6 {[%emt 0:00:02]} 9. a3 {[%emt 0:00:10]} Bxc3 {
[%emt 0:00:03]} 10. bxc3 {[%emt 0:00:06]} Ne4 {[%emt 0:00:01]} 11. Qd3 {
[%emt 0:00:11]} Qf6 {[%emt 0:00:15]} 12. Ne5 {[%emt 0:00:12]} Qg5 {[%emt 0:00:
05]} 13. Nxc6 {[%emt 0:00:06]} e5 {[%emt 0:00:03]} 14. dxe5 {[%emt 0:00:11]}
Bxh3 {[%emt 0:00:02]} 15. g3 {[%emt 0:00:25]} Bxf1 {[%emt 0:00:04]} 16. Kxf1 {
[%emt 0:00:05]} Qf5 {[%emt 0:00:08]} 17. Qe2 {[%emt 0:00:14]} Ng5 {[%emt 0:00:
07]} 18. Qd2 {[%emt 0:00:06]} Nh3 {[%emt 0:00:04]} 19. Bb2 {[%emt 0:00:15]}
Qxe5 {[%emt 0:00:11]} 20. Nxe5 {[%emt 0:00:13]} Rab8 {[%emt 0:00:06]} 21. Rb1 {
[%emt 0:00:08]} Rfe8 {[%emt 0:00:06]} 22. Qxd5 {[%emt 0:00:20]} Rbd8 {[%emt 0:
00:06]} 23. Qxf7+ {[%emt 0:00:04]} Kh7 {[%emt 0:00:06]} 24. Qg6+ {[%emt 0:00:
08]} Kg8 {[%emt 0:00:02]} 25. Nc6 {[%emt 0:00:09]} Rc8 {[%emt 0:00:17]} 26.
Nxa7 {[%emt 0:00:08]} Ra8 {[%emt 0:00:02]} 27. Qc6 {[%emt 0:00:08]} Rf8 {
[%emt 0:00:06]} 28. Nb5 {[%emt 0:00:12]} Rxf2+ {[%emt 0:00:07]} 29. Ke1 {
[%emt 0:00:06]} Raf8 {[%emt 0:00:03]} 30. Qc4+ {[%emt 0:00:18]} Kh7 {[%emt 0:
00:10]} 31. Qd3+ {[%emt 0:00:10]} Kg8 {[%emt 0:00:09]} 32. Qc4+ {[%emt 0:00:44]
} Kh7 {[%emt 0:00:04]} 33. Qh4 {[%emt 0:00:08]} Rf1+ {[%emt 0:00:06]} 34. Ke2 {
[%emt 0:00:05]} Rxb1 {[%emt 0:00:04]} 35. Qxh3 {[%emt 0:00:14]} Rxb2 {[%emt 0:
00:02]} 36. Nxc7 {[%emt 0:00:10]} Rxc2+ {[%emt 0:00:02]} 37. Kd1 {[%emt 0:00:
07]} Rxc3 {[%emt 0:00:02]} 38. Kd2 {[%emt 0:00:13]} Rxc7 {[%emt 0:00:03]} 39.
a4 {[%emt 0:00:17]} Rd8+ {[%emt 0:00:05]} 40. Ke2 {[%emt 0:00:04]} Rc2+ {
[%emt 0:00:01]} 41. Kf3 {[%emt 0:00:04]} Ra2 {[%emt 0:00:06]} 42. Qf5+ {
[%emt 0:00:08]} Kg8 {[%emt 0:00:04]} 43. Qb5 {[%emt 0:00:08]} Rf8+ {[%emt 0:00:
04]} 44. Kg4 {[%emt 0:00:13]} Ra8 {[%emt 0:00:05]} 45. Qd5+ {[%emt 0:00:09]}
Kh7 {[%emt 0:00:03]} 46. Qxa2 {[%emt 0:00:11]} g6 {[%emt 0:00:07]} 47. Qb3 {
[%emt 0:00:13]} Rf8 {[%emt 0:00:07]} 48. Qb7+ {[%emt 0:00:16]} Kg8 {[%emt 0:00:
06]} 49. a5 {[%emt 0:00:07]} h5+ {[%emt 0:00:03]} 50. Kh3 {[%emt 0:00:03]} g5 {
[%emt 0:00:02]} 51. a6 {[%emt 0:00:13]} Rf2 {[%emt 0:00:07]} 52. a7 {[%emt 0:
00:17]} g4+ {[%emt 0:00:17]} 53. Kh4 {[%emt 0:00:04]} Rh2+ {[%emt 0:00:01]} 54.
Kg5 {[%emt 0:00:10]} Ra2 {[%emt 0:00:04]} 55. a8=Q+ {[%emt 0:00:07]} Rxa8 {
[%emt 0:00:03]} 56. Qxa8+ {[%emt 0:00:02]} Kf7 {[%emt 0:00:01]} 57. Qa5 {
[%emt 0:00:08]} h4 {[%emt 0:00:09]} 58. gxh4 {[%emt 0:00:04]} g3 {[%emt 0:00:
03]} 59. Qf5+ {[%emt 0:00:07]} Kg7 {[%emt 0:00:04]} 60. Qf4 {[%emt 0:00:04]} g2
{[%emt 0:00:02]} 61. Qf6+ {[%emt 0:00:03]} Kh7 {[%emt 0:00:05]} 62. Qf2 {
[%emt 0:00:06]} g1=Q+ {[%emt 0:00:05]} 63. Qxg1 {[%emt 0:00:05]} Kg7 {[%emt 0:
00:04]} 64. Qf1 {[%emt 0:00:13]} Kh7 {[%emt 0:00:02]} 65. Qf6 {[%emt 0:00:08]}
Kg8 {[%emt 0:00:04]} 66. Qe7 {[%emt 0:00:09]} Kh8 {[%emt 0:00:04]} 67. Kg6 {
[%emt 0:00:07]} Kg8 {[%emt 0:00:03]} 68. Qg7# {[%emt 0:00:14] WideClassyQuiz
won by checkmate} 1-0

[Event "Fast Chess"]
[Site "ChessKid.com"]
[Date "2020.03.28"]
[Round "2"]
[White "Li, Tobias"]
[Black "Dai, Lana"]
[Result "1/2-1/2"]
[ECO "A00"]
[WhiteElo "1193"]
[BlackElo "1089"]
[PlyCount "52"]
[EventDate "2020.??.??"]
[TimeControl "900"]
[WhiteClock "0:11:56"]
[BlackClock "0:11:25"]

1. e3 {[%emt 0:00:00]} e5 {[%emt 0:00:03]} 2. e4 {[%emt 0:00:00]} Nc6 {[%emt 0:
00:07]} 3. Nf3 {[%emt 0:00:05]} Bc5 {[%emt 0:00:07]} 4. Nc3 {[%emt 0:00:09]}
Nf6 {[%emt 0:00:04]} 5. Be2 {[%emt 0:00:03]} d6 {[%emt 0:00:02]} 6. O-O {
[%emt 0:00:03]} Bg4 {[%emt 0:00:08]} 7. h3 {[%emt 0:00:02]} Bh5 {[%emt 0:00:03]
} 8. Bc4 {[%emt 0:00:05]} h6 {[%emt 0:00:09]} 9. Re1 {[%emt 0:00:20]} O-O {
[%emt 0:00:08]} 10. d3 {[%emt 0:00:15]} Nd4 {[%emt 0:00:05]} 11. g4 {[%emt 0:
00:16]} Bg6 {[%emt 0:00:12]} 12. Nxd4 {[%emt 0:00:05]} Bxd4 {[%emt 0:00:03]}
13. Be3 {[%emt 0:00:05]} Bxe3 {[%emt 0:00:04]} 14. Rxe3 {[%emt 0:00:06]} h5 {
[%emt 0:00:12]} 15. Nd5 {[%emt 0:00:09]} Nxd5 {[%emt 0:00:03]} 16. Bxd5 {
[%emt 0:00:03]} Rb8 {[%emt 0:00:05]} 17. c3 {[%emt 0:00:26]} Qh4 {[%emt 0:00:
07]} 18. Qb3 {[%emt 0:00:22]} hxg4 {[%emt 0:00:36]} 19. Kh2 {[%emt 0:00:16]}
gxh3 {[%emt 0:00:12]} 20. Rxh3 {[%emt 0:00:10]} Qf4+ {[%emt 0:00:04]} 21. Kh1 {
[%emt 0:00:07]} Qxf2 {[%emt 0:00:14]} 22. Rh2 {[%emt 0:00:03]} Qf3+ {[%emt 0:
00:05]} 23. Rg2 {[%emt 0:00:19]} Qh3+ {[%emt 0:00:04]} 24. Rh2 {[%emt 0:00:02]}
Qf3+ {[%emt 0:00:04]} 25. Rg2 {[%emt 0:00:02]} Qh3+ {[%emt 0:00:02]} 26. Rh2 {
[%emt 0:00:02]} Qf3+ {[%emt 0:00:01] Game drawn by repetition} 1/2-1/2

[Event "Fast Chess"]
[Site "ChessKid.com"]
[Date "2020.03.28"]
[Round "3"]
[White "Li, Patrick"]
[Black "Li, Tobias"]
[Result "0-1"]
[ECO "C50"]
[WhiteElo "921"]
[BlackElo "1216"]
[PlyCount "58"]
[EventDate "2020.??.??"]
[TimeControl "900"]
[WhiteClock "0:10:16"]
[BlackClock "0:06:12"]

1. e4 {[%emt 0:00:16]} e5 {[%emt 0:00:04]} 2. Nf3 {[%emt 0:00:09]} Nf6 {
[%emt 0:00:06]} 3. Nc3 {[%emt 0:00:08]} Nc6 {[%emt 0:00:04]} 4. Bc4 {[%emt 0:
00:03]} h6 {[%emt 0:00:05]} 5. O-O {[%emt 0:00:23]} Bc5 {[%emt 0:00:06]} 6. h3
{[%emt 0:00:07]} O-O {[%emt 0:00:03]} 7. d3 {[%emt 0:00:06]} d6 {[%emt 0:00:05]
} 8. Nb5 {[%emt 0:00:11]} Nb4 {[%emt 0:00:13]} 9. Qd2 {[%emt 0:00:22]} a6 {
[%emt 0:00:04]} 10. a3 {[%emt 0:00:08]} axb5 {[%emt 0:00:10]} 11. axb4 {
[%emt 0:00:02]} Rxa1 {[%emt 0:00:03]} 12. Bxb5 {[%emt 0:00:07]} Bb6 {[%emt 0:
00:11]} 13. Nh4 {[%emt 0:00:08]} Nh5 {[%emt 0:00:13]} 14. b3 {[%emt 0:00:05]}
Qxh4 {[%emt 0:00:05]} 15. Ba4 {[%emt 0:00:05]} Qf6 {[%emt 0:00:42]} 16. Bb2 {
[%emt 0:00:11]} Rxf1+ {[%emt 0:00:03]} 17. Kxf1 {[%emt 0:00:07]} Ng3+ {[%emt 0:
00:09]} 18. Kg1 {[%emt 0:00:07]} Nh5 {[%emt 0:00:12]} 19. b5 {[%emt 0:00:44]}
Re8 {[%emt 0:00:11]} 20. Bc3 {[%emt 0:00:22]} Ng3 {[%emt 0:00:21]} 21. Qe1 {
[%emt 0:00:14]} Bd7 {[%emt 0:00:36]} 22. Qd2 {[%emt 0:00:11]} c5 {[%emt 0:00:
11]} 23. Bb4 {[%emt 0:00:29]} cxb4 {[%emt 0:00:14]} 24. c4 {[%emt 0:00:26]}
bxc3 {[%emt 0:00:04]} 25. Qe1 {[%emt 0:02:47]} c2 {[%emt 0:00:09]} 26. Qe3 {
[%emt 0:00:12]} c1=Q+ {[%emt 0:00:05]} 27. Qxc1 {[%emt 0:00:24]} Ne2+ {[%emt 0:
00:04]} 28. Kf1 {[%emt 0:00:06]} Nxc1 {[%emt 0:00:04]} 29. b4 {[%emt 0:00:08]}
Qxf2# {[%emt 0:00:07] OnlyHungryKiwi won by checkmate} 0-1

[Event "Fast Chess"]
[Site "ChessKid.com"]
[Date "2020.03.28"]
[Round "3"]
[White "Dai, Lana"]
[Black "Sasse, Gabriel"]
[Result "1-0"]
[ECO "C28"]
[WhiteElo "1114"]
[BlackElo "1149"]
[PlyCount "61"]
[EventDate "2020.??.??"]
[TimeControl "900"]
[WhiteClock "0:12:06"]
[BlackClock "0:10:02"]

1. e4 {[%emt 0:00:00]} e5 {[%emt 0:00:02]} 2. Nc3 {[%emt 0:00:03]} Nf6 {
[%emt 0:00:05]} 3. Bc4 {[%emt 0:00:02]} Bc5 {[%emt 0:00:02]} 4. d3 {[%emt 0:00:
03]} Nc6 {[%emt 0:00:02]} 5. Bg5 {[%emt 0:00:04]} Be7 {[%emt 0:00:06]} 6. Nf3 {
[%emt 0:00:08]} h6 {[%emt 0:00:03]} 7. Be3 {[%emt 0:00:07]} Ng4 {[%emt 0:00:06]
} 8. Bd2 {[%emt 0:00:17]} Bc5 {[%emt 0:00:04]} 9. d4 {[%emt 0:00:17]} exd4 {
[%emt 0:00:07]} 10. Nd5 {[%emt 0:00:03]} d3 {[%emt 0:00:06]} 11. Ne3 {[%emt 0:
00:12]} dxc2 {[%emt 0:00:04]} 12. Qxc2 {[%emt 0:00:05]} Nxe3 {[%emt 0:00:04]}
13. Bxe3 {[%emt 0:00:13]} Bb4+ {[%emt 0:00:02]} 14. Bd2 {[%emt 0:00:07]} Bxd2+
{[%emt 0:00:03]} 15. Qxd2 {[%emt 0:00:02]} O-O {[%emt 0:00:05]} 16. e5 {
[%emt 0:00:10]} d6 {[%emt 0:00:05]} 17. Qe3 {[%emt 0:00:15]} Re8 {[%emt 0:00:
04]} 18. Qd2 {[%emt 0:00:32]} Nxe5 {[%emt 0:00:04]} 19. Nxe5 {[%emt 0:00:04]}
Rxe5+ {[%emt 0:00:01]} 20. Be2 {[%emt 0:00:13]} b6 {[%emt 0:00:10]} 21. O-O {
[%emt 0:00:15]} Rh5 {[%emt 0:00:08]} 22. Bxh5 {[%emt 0:00:05]} Qf6 {[%emt 0:00:
21]} 23. Bf3 {[%emt 0:00:11]} Qg6 {[%emt 0:00:04]} 24. Bxa8 {[%emt 0:00:06]}
Bh3 {[%emt 0:00:05]} 25. Rae1 {[%emt 0:00:24]} c6 {[%emt 0:00:16]} 26. Re8+ {
[%emt 0:00:06]} Kh7 {[%emt 0:00:02]} 27. Bxc6 {[%emt 0:00:11]} d5 {[%emt 0:00:
02]} 28. Bxd5 {[%emt 0:00:04]} Qg4 {[%emt 0:00:21]} 29. Be4+ {[%emt 0:00:10]}
g6 {[%emt 0:00:06]} 30. Qd8 {[%emt 0:00:20]} f5 {[%emt 0:00:05]} 31. Qe7# {
[%emt 0:00:09] TopBrownCave won by checkmate} 1-0

[Event "Fast Chess"]
[Site "ChessKid.com"]
[Date "2020.03.29"]
[Round "1"]
[White "Rosenkranz, Benjamin"]
[Black "Georgiev, Maximilian"]
[Result "0-1"]
[ECO "C66"]
[WhiteElo "1162"]
[BlackElo "1266"]
[PlyCount "98"]
[EventDate "2020.??.??"]
[TimeControl "300+10"]
[WhiteClock "0:02:54"]
[BlackClock "0:00:30"]

1. e4 {[%emt 0:00:10]} e5 {[%emt 0:00:11]} 2. Nf3 {[%emt 0:00:11]} Nc6 {
[%emt 0:00:10]} 3. Nc3 {[%emt 0:00:12]} Nf6 {[%emt 0:00:11]} 4. Bb5 {[%emt 0:
00:16]} d6 {[%emt 0:00:12]} 5. O-O {[%emt 0:00:14]} a6 {[%emt 0:00:11]} 6.
Bxc6+ {[%emt 0:00:12]} bxc6 {[%emt 0:00:11]} 7. d3 {[%emt 0:00:13]} Bg4 {
[%emt 0:00:14]} 8. Bg5 {[%emt 0:00:20]} h6 {[%emt 0:00:13]} 9. Bd2 {[%emt 0:00:
14]} Be7 {[%emt 0:00:11]} 10. h3 {[%emt 0:00:12]} Bh5 {[%emt 0:00:12]} 11. Qe2
{[%emt 0:00:34]} O-O {[%emt 0:00:13]} 12. Qe3 {[%emt 0:00:14]} d5 {[%emt 0:00:
22]} 13. exd5 {[%emt 0:00:13]} cxd5 {[%emt 0:00:10]} 14. Qxe5 {[%emt 0:00:13]}
Bd6 {[%emt 0:00:19]} 15. Qe3 {[%emt 0:00:19]} Be7 {[%emt 0:00:18]} 16. Nh4 {
[%emt 0:00:25]} d4 {[%emt 0:00:12]} 17. Qf4 {[%emt 0:00:22]} dxc3 {[%emt 0:00:
13]} 18. Bxc3 {[%emt 0:00:11]} Nd5 {[%emt 0:00:23]} 19. Qd4 {[%emt 0:00:18]}
Nxc3 {[%emt 0:00:13]} 20. Qxd8 {[%emt 0:00:12]} Ne2+ {[%emt 0:00:16]} 21. Kh2 {
[%emt 0:00:16]} Bxd8 {[%emt 0:00:11]} 22. Nf5 {[%emt 0:00:15]} Nf4 {[%emt 0:00:
15]} 23. g4 {[%emt 0:00:25]} Bg6 {[%emt 0:00:14]} 24. Nd4 {[%emt 0:00:18]} Ne6
{[%emt 0:00:18]} 25. Nxe6 {[%emt 0:00:12]} fxe6 {[%emt 0:00:11]} 26. Rae1 {
[%emt 0:00:20]} Re8 {[%emt 0:00:16]} 27. Re5 {[%emt 0:00:21]} c6 {[%emt 0:00:
13]} 28. Rfe1 {[%emt 0:00:20]} Bc7 {[%emt 0:00:11]} 29. f4 {[%emt 0:00:26]}
Bxe5 {[%emt 0:00:11]} 30. fxe5 {[%emt 0:00:12]} Rab8 {[%emt 0:00:13]} 31. g5 {
[%emt 0:00:15]} hxg5 {[%emt 0:00:11]} 32. c3 {[%emt 0:00:18]} Bxd3 {[%emt 0:00:
12]} 33. Re3 {[%emt 0:00:17]} Bg6 {[%emt 0:00:13]} 34. Rf3 {[%emt 0:00:16]} Rf8
{[%emt 0:00:11]} 35. Rg3 {[%emt 0:00:14]} Rf2+ {[%emt 0:00:12]} 36. Kg1 {
[%emt 0:00:16]} Rfxb2 {[%emt 0:00:11]} 37. Rg2 {[%emt 0:00:14]} Rxg2+ {[%emt 0:
00:13]} 38. Kxg2 {[%emt 0:00:11]} Rb2+ {[%emt 0:00:12]} 39. Kg3 {[%emt 0:00:11]
} Rxa2 {[%emt 0:00:10]} 40. h4 {[%emt 0:00:14]} gxh4+ {[%emt 0:00:11]} 41. Kxh4
{[%emt 0:00:12]} c5 {[%emt 0:00:11]} 42. Kg5 {[%emt 0:00:14]} Bc2 {[%emt 0:00:
13]} 43. Kf4 {[%emt 0:00:15]} a5 {[%emt 0:00:10]} 44. Ke3 {[%emt 0:00:13]} a4 {
[%emt 0:00:10]} 45. Kd2 {[%emt 0:00:16]} Bh7+ {[%emt 0:00:11]} 46. Kc1 {
[%emt 0:00:13]} Rh2 {[%emt 0:00:12]} 47. Kd1 {[%emt 0:00:13]} a3 {[%emt 0:00:
10]} 48. Ke1 {[%emt 0:00:10]} a2 {[%emt 0:00:10]} 49. Kf1 {[%emt 0:00:10]}
a1=Q# {[%emt 0:00:11] TallSnazzyBall won by checkmate} 0-1